bitfinex/quotes_ETHUSD_20240703
["timestamp","ask_amount","ask_price","bid_price","bid_amount"]
[1720030886931,3.02647,3304.2,3304.1,0.08444477]
[1720030887854,3.02647,3304.2,3303.9,2.3807]
[1720030889170,5.3409,3304.6,3303.9,2.3807]
[1720030889171,6.05241,3304.5,3304.0,0.899]
[1720030889353,6.02627,3304.4,3304.0,0.899]
[1720030889666,3.02627,3304.4,3304.0,0.899]
[1720030889965,3.0,3304.3,3304.0,0.899]
[1720030891785,3.0,3304.3,3304.2,0.899]
[1720030891933,3.02608,3304.6,3304.2,0.899]
[1720030895735,3.02608,3304.6,3304.3,0.08434219]
[1720030897570,3.02596,3304.8,3304.3,0.08434219]
[1720030897771,3.0,3304.7,3304.3,0.08434219]
[1720030898473,6.026,3304.7,3304.3,0.08434219]
[1720030900070,5.976,3304.7,3304.3,0.08434219]
[1720030900378,2.95,3304.7,3304.4,3.2316]
[1720030900562,3.02578,3305.0,3304.5,0.08418629]
[1720030900867,3.02578,3305.0,3304.4,3.2316]
[1720030902267,3.0,3304.9,3304.4,3.2316]
[1720030903873,3.0,3304.9,3304.5,0.08415758]
[1720030904594,6.02582,3304.9,3304.5,0.08415758]
[1720030914674,3.0259,3304.8,3304.5,0.08415758]
[1720030914883,3.931072,3304.8,3304.5,0.08415758]
[1720030915193,3.931072,3304.8,3304.2,3.3129]
[1720030915390,3.0259,3304.8,3304.3,0.08410834]
[1720030916689,3.026,3304.7,3304.3,0.08410834]
[1720030922974,6.02582,3304.9,3304.3,0.08410834]
[1720030923383,3.02591,3304.8,3304.3,0.08410834]
[1720030923715,3.0,3304.9,3304.3,0.08410834]
[1720030923897,3.0,3304.9,3304.6,0.899]
[1720030924217,3.0,3304.9,3304.7,0.08407552]
[1720030925284,2.4606,3305.4,3304.8,0.899]
[1720030925521,2.4606,3305.4,3305.0,0.899]
[1720030925522,3.0254,3305.4,3305.0,0.899]
[1720030925722,3.0254,3305.4,3304.9,0.08401809]
[1720030925892,3.0254,3305.4,3304.8,0.899]
[1720030926096,3.02533,3305.5,3305.0,0.08401809]
[1720030926097,3.02545,3305.3,3305.0,0.08401809]
[1720030926283,3.02545,3305.3,3304.8,0.899]
[1720030926483,3.02545,3305.3,3305.1,0.08401809]
[1720030926805,3.02545,3305.3,3305.2,0.08401809]
[1720030927005,6.02545,3305.3,3304.8,0.899]
[1720030927213,3.0,3305.2,3304.8,0.899]
[1720030927782,3.02533,3305.5,3304.9,2.3441]
[1720030927986,3.02533,3305.5,3305.0,0.08401809]
[1720030928220,6.05068,3305.5,3305.0,0.08401809]
[1720030928637,3.02533,3305.5,3305.0,0.08401809]
[1720030928813,3.02535,3305.4,3305.0,0.08401809]
[1720030929015,3.02525,3305.6,3305.0,0.08401809]
[1720030929219,5.919153,3305.7,3305.0,0.08401809]
[1720030929624,3.0,3305.6,3305.0,0.08401809]
[1720030930223,3.02528,3305.5,3305.0,0.08401809]
[1720030931028,3.0,3305.6,3305.5,0.08382124]
[1720030931936,3.0,3305.6,3305.2,2.4707]
[1720030932102,3.0,3305.6,3305.5,0.08382124]
[1720030932306,3.0,3305.8,3305.2,2.4707]
[1720030932523,3.0,3305.8,3305.5,0.08382124]
[1720030932735,3.0,3305.8,3305.3,3.92443]
[1720030932940,6.02487,3306.0,3305.6,0.08382124]
[1720030933143,3.929863,3305.9,3305.3,3.92443]
[1720030933319,3.0,3305.8,3305.7,0.08382124]
[1720030933521,3.0,3305.8,3305.3,3.92443]
[1720030933720,3.0,3305.8,3305.7,0.08382124]
[1720030933939,3.0,3305.8,3305.3,3.92443]
[1720030934441,3.0,3305.8,3305.4,0.08382124]
[1720030934641,3.0,3305.8,3305.5,2.4528]
[1720030935029,3.0,3305.8,3305.6,0.08382124]
[1720030935641,6.02499,3305.8,3305.6,0.08382124]
[1720030935810,6.02499,3305.8,3305.2,3.3214]
[1720030936006,6.02499,3305.8,3305.3,0.08382124]
[1720030936207,6.02499,3305.8,3305.2,3.3214]
[1720030936405,6.02499,3305.8,3305.3,0.08343577]
[1720030936406,3.0251,3305.7,3305.3,0.08343577]
[1720030936608,3.02542,3305.4,3304.9,2.2506]
[1720030936807,3.02544,3305.3,3305.0,0.08343577]
[1720030937048,3.02562,3305.1,3305.0,0.08343577]
[1720030937447,3.02562,3305.1,3304.7,2.3109]
[1720030937682,3.02568,3305.1,3304.8,0.07784715]
[1720030939938,3.02555,3305.2,3304.8,0.07784715]
[1720030940738,3.02555,3305.2,3304.8,0.97684715]
[1720030940943,6.05115,3305.2,3304.8,0.97684715]
[1720030941144,3.02555,3305.2,3304.8,0.97684715]
[1720030941772,6.05115,3305.2,3304.8,0.97684715]
[1720030941959,3.02555,3305.2,3304.8,0.97684715]
[1720030942164,6.05115,3305.2,3304.8,0.97684715]
[1720030942359,3.02562,3305.1,3304.8,0.97684715]
[1720030944674,3.02572,3305.0,3304.8,0.07784715]
[1720030945449,3.02562,3305.1,3304.8,0.07784715]
[1720030945652,3.02581,3304.9,3304.8,0.07784715]
[1720030945855,3.02581,3304.9,3304.5,2.4703]
[1720030946061,3.02581,3304.9,3304.8,0.07818336]
[1720030946546,3.02581,3304.9,3304.5,2.4703]
[1720030946758,3.02581,3304.9,3304.6,0.07818336]
[1720030948484,3.02562,3305.1,3304.6,1.3219317]
[1720030948813,6.05131,3305.1,3304.6,1.3219317]
[1720030949741,3.02574,3305.0,3304.6,1.3219317]
[1720030950571,3.02574,3305.0,3304.6,0.4229317]
[1720030950759,3.02574,3305.0,3304.6,0.07818336]
[1720030953904,3.02581,3304.9,3304.6,0.07818336]
[1720030955675,3.02599,3304.7,3304.6,0.07818336]
[1720030956418,3.02599,3304.7,3304.3,2.4277]
[1720030956619,3.02599,3304.7,3304.4,0.07818336]
[1720030957010,3.02608,3304.6,3304.4,0.07818336]
[1720030959312,3.02599,3304.7,3304.4,0.07818336]
[1720030959730,3.02599,3304.7,3304.5,0.899]
[1720030960319,3.02531,3305.5,3304.7,2.3097]
[1720030960528,3.02541,3305.4,3305.2,0.899]
[1720030960726,3.02541,3305.4,3305.0,0.899]
[1720030961138,3.02541,3305.4,3305.1,0.07837203]
[1720030967156,3.02523,3305.6,3305.1,0.07837203]
[1720030967359,3.02523,3305.6,3305.2,2.4256]
[1720030967360,3.0,3305.5,3305.2,2.4256]
[1720030967867,3.0,3305.5,3305.3,0.07819569]
[1720030968033,3.0,3305.5,3305.2,2.7658972]
[1720030968229,3.0,3305.6,3305.3,0.07819569]
[1720030968431,3.0,3305.6,3305.2,2.7658972]
[1720030968656,3.0,3305.6,3305.3,0.07819569]
[1720030968872,3.0,3305.6,3305.2,2.7658972]
[1720030969028,3.0,3305.6,3305.3,0.07819569]
[1720030969228,3.0,3305.6,3305.2,2.7658972]
[1720030969441,3.0,3305.6,3305.3,0.07819569]
[1720030969643,3.0,3305.6,3305.2,2.7658972]
[1720030969864,3.0,3305.6,3305.3,0.07819569]
[1720030970047,3.0,3305.6,3305.2,2.7658972]
[1720030970253,3.0,3305.6,3305.3,0.07819569]
[1720030970423,3.0,3305.6,3305.2,2.7658972]
[1720030970626,3.0,3305.6,3305.3,0.07819569]
[1720030970825,3.0,3305.6,3305.3,0.28440929]
[1720030971037,3.0,3305.8,3305.4,0.07819569]
[1720030971243,6.02504,3305.8,3305.4,0.07819569]
[1720030972973,3.92376,3306.1,3305.5,2.373]
[1720030973138,3.0,3306.0,3305.5,2.95514627]
[1720030973333,3.0,3306.0,3305.6,0.07800295]
[1720030975752,3.0,3306.0,3305.6,0.97700295]
[1720030977888,3.0,3306.2,3305.6,0.97700295]
[1720030979742,6.02464,3306.2,3305.6,0.97700295]
[1720030980363,8.279,3306.5,3305.7,5.42867]
[1720030980364,3.02448,3306.4,3305.7,5.42867]
[1720030980558,6.04898,3306.4,3305.7,5.42867]
[1720030980766,3.02448,3306.4,3305.8,1.11995241]
[1720030981483,3.02458,3306.3,3305.8,1.11995241]
[1720030983975,3.02462,3306.2,3305.8,1.11995241]
[1720030984766,6.04899,3306.4,3305.8,1.11995241]
[1720030984965,6.04898,3306.4,3305.8,1.11995241]
[1720030985153,3.02448,3306.4,3305.8,1.11995241]
[1720030985353,6.049,3306.4,3305.8,1.11995241]
[1720030986960,3.02453,3306.3,3305.8,1.11995241]
[1720030987189,3.02453,3306.3,3305.8,2.01895241]
[1720030989884,3.0244,3306.5,3306.0,2.2698]
[1720030990086,3.0244,3306.5,3306.1,0.07678417]
[1720030990087,3.0,3306.4,3306.1,0.07678417]
[1720030993497,6.02444,3306.4,3306.1,0.07678417]
[1720031000607,9.04894,3306.4,3306.1,0.07678417]
[1720031001496,3.02452,3306.3,3306.1,0.07678417]
[1720031011860,3.0,3306.4,3306.1,0.31144259]
[1720031012168,3.0,3306.4,3306.1,1.21044259]
[1720031012369,3.0,3306.4,3306.1,0.97578417]
[1720031012869,6.02445,3306.4,3306.1,0.97578417]
[1720031013569,3.02419,3306.7,3306.1,0.97578417]
[1720031013886,3.02419,3306.7,3306.3,0.899]
[1720031014173,3.02419,3306.7,3306.4,0.07657926]
[1720031015038,3.02412,3306.8,3306.5,2.3955]
[1720031015632,3.02412,3306.8,3306.6,0.07657926]
[1720031020054,3.02393,3307.0,3306.6,0.07657926]
[1720031020055,6.04789,3307.0,3306.6,0.07657926]
[1720031020245,3.02393,3307.0,3306.6,0.07657926]
[1720031020479,3.02393,3307.0,3306.5,3.2945]
[1720031020678,3.02393,3307.0,3306.6,0.07657926]
[1720031022192,3.02376,3307.2,3306.7,3.1932]
[1720031022552,3.02362,3307.3,3306.8,0.07638667]
[1720031023190,3.02371,3307.2,3306.8,0.07638667]
[1720031028353,3.02357,3307.4,3306.8,0.07638667]
[1720031028557,3.02357,3307.4,3306.9,1.22595867]
[1720031028777,3.02357,3307.4,3306.9,0.32695867]
[1720031028981,3.02357,3307.4,3307.0,0.07608761]
[1720031029872,3.02357,3307.4,3307.1,2.3039]
[1720031030381,3.02357,3307.4,3307.2,0.07608761]
[1720031040787,3.02357,3307.4,3307.1,2.3039]
[1720031041016,3.02357,3307.4,3307.3,0.07596264]
[1720031041197,6.02357,3307.4,3307.1,2.3039]
[1720031041417,3.02357,3307.4,3307.3,0.07596264]
[1720031041721,6.02357,3307.4,3307.3,0.07596264]
[1720031042029,6.02357,3307.4,3307.1,2.3039]
[1720031042206,6.02357,3307.4,3307.3,0.07596264]
[1720031042406,9.04716,3307.4,3307.1,2.3039]
[1720031042755,9.04716,3307.4,3307.3,0.07596264]
[1720031043030,3.02386,3307.1,3306.7,0.899]
[1720031043418,3.02386,3307.1,3306.8,0.07588891]
[1720031048102,3.02386,3307.1,3306.7,0.899]
[1720031050040,3.02369,3307.3,3306.7,0.899]
[1720031050361,3.02372,3307.2,3306.8,0.0760036]
[1720031051527,3.02334,3307.6,3306.9,2.2784]
[1720031051737,6.04675,3307.6,3307.4,2.2784]
[1720031051916,6.04675,3307.6,3307.5,0.0760036]
[1720031052253,3.02334,3307.6,3307.4,2.2784]
[1720031053125,3.02334,3307.6,3307.5,0.0760036]
[1720031054453,3.02334,3307.6,3307.2,2.3032]
[1720031054657,3.02334,3307.6,3307.5,0.0760036]
[1720031055164,3.02334,3307.6,3307.2,2.3032]
[1720031055367,3.02334,3307.6,3307.3,0.0760036]
[1720031060955,3.02334,3307.6,3307.4,0.0758971]
[1720031060956,6.04674,3307.6,3307.4,0.0758971]
[1720031061159,6.04674,3307.6,3307.0,3.02387]
[1720031061360,6.04674,3307.6,3307.1,0.0758971]
[1720031063771,3.02353,3307.4,3307.1,0.0758971]
[1720031063945,4.842504,3307.6,3306.7,6.225793]
[1720031064125,3.02357,3307.4,3306.8,0.0758971]
[1720031064330,3.02363,3307.3,3306.8,0.0758971]
[1720031064833,3.02363,3307.3,3306.8,0.9748971]
[1720031065035,3.02363,3307.3,3306.8,1.69496611]
[1720031071368,3.02363,3307.3,3306.8,0.79596611]
[1720031081751,3.02395,3307.0,3306.8,0.0758971]
[1720031082058,3.02395,3307.0,3306.4,2.3332]
[1720031082262,3.02395,3307.0,3306.9,0.07599131]
[1720031082461,3.02395,3307.0,3306.4,2.3332]
[1720031082662,3.02395,3307.0,3306.9,0.07599131]
[1720031082902,6.04792,3307.0,3306.4,2.3332]
[1720031083054,6.04792,3307.0,3306.9,0.07605685]
[1720031083260,6.04792,3307.0,3306.4,2.3332]
[1720031083463,3.02395,3307.0,3306.9,0.07605685]
[1720031083784,3.02395,3307.0,3306.9,0.07614698]
[1720031083974,3.02399,3306.9,3306.4,2.3332]
[1720031084189,3.02399,3306.9,3306.5,0.07614698]
[1720031084405,3.02399,3306.9,3306.4,2.3332]
[1720031084864,3.02399,3306.9,3306.5,0.07614698]
[1720031086507,3.02399,3306.9,3306.5,0.31708168]
[1720031087009,3.02399,3306.9,3306.5,0.07614698]
[1720031088407,6.04803,3306.9,3306.5,0.07614698]
[1720031091011,3.02399,3306.9,3306.5,0.07614698]
[1720031093108,6.04803,3306.9,3306.5,0.07614698]
[1720031093532,3.02399,3306.9,3306.5,0.07614698]
[1720031100808,3.02372,3307.2,3306.6,2.4886]
[1720031101122,6.04748,3307.2,3306.8,2.4886]
[1720031101324,3.02372,3307.2,3306.8,2.4886]
[1720031101516,3.0238,3307.1,3306.8,2.4886]
[1720031101729,3.0238,3307.1,3306.9,0.07411071]
[1720031102113,3.02388,3307.0,3306.9,0.07411071]
[1720031102324,6.04776,3307.0,3306.9,0.07411071]
[1720031102803,3.02417,3306.7,3306.4,2.4886]
[1720031103001,3.02417,3306.7,3306.5,0.07403697]
[1720031104715,3.02425,3306.6,3306.5,0.07403697]
[1720031105440,3.02425,3306.6,3306.5,0.0741435]
[1720031105646,3.02417,3306.7,3306.2,2.4886]
[1720031105647,3.02436,3306.5,3306.2,2.4886]
[1720031105944,3.02417,3306.7,3306.5,0.0741435]
[1720031106241,3.02417,3306.7,3306.6,0.0741435]
[1720031106446,6.04842,3306.7,3306.6,0.0741435]
[1720031106643,6.04839,3306.7,3306.2,3.3876]
[1720031106844,6.04839,3306.7,3306.6,0.0741435]
[1720031107050,3.02403,3306.9,3306.2,3.3876]
[1720031107266,3.02403,3306.9,3306.6,0.0741435]
[1720031107558,3.02403,3306.9,3306.3,2.449]
[1720031107760,3.02403,3306.9,3306.7,0.0741435]
[1720031107967,3.02403,3306.9,3306.3,2.449]
[1720031108112,3.02403,3306.9,3306.8,0.0741435]
[1720031108319,3.02403,3306.9,3306.3,2.449]
[1720031108618,3.02403,3306.9,3306.8,0.0741435]
[1720031108817,3.02403,3306.9,3306.3,2.449]
[1720031109025,3.02403,3306.9,3306.4,0.0741435]
[1720031109962,3.02407,3306.8,3306.4,0.0741435]
[1720031112321,3.02407,3306.8,3306.4,0.1545735]
[1720031117369,6.0482,3306.8,3306.4,0.1545735]
[1720031117570,0.899,3307.0,3306.4,0.1545735]
[1720031117863,3.02432,3306.6,3306.4,0.1545735]
[1720031118020,6.04864,3306.6,3306.4,0.1545735]
[1720031119441,3.02432,3306.6,3306.4,0.1545735]
[1720031120037,3.02411,3306.8,3306.4,0.1545735]
[1720031120482,6.04826,3306.8,3306.4,0.1545735]
[1720031121183,3.02418,3306.7,3306.4,0.1545735]
[1720031124048,6.04841,3306.7,3306.4,0.1545735]
[1720031124459,3.02425,3306.6,3306.4,0.1545735]
[1720031124989,3.02434,3306.5,3306.4,0.1545735]
[1720031126311,6.94768,3306.5,3306.4,0.1545735]
[1720031126514,12.43478,3306.5,3306.4,0.1545735]
[1720031126722,12.70043531,3306.5,3306.4,0.08043]
[1720031127076,11.80143531,3306.5,3306.4,0.08043]
[1720031127272,14.24349114,3306.5,3306.4,0.08043]
[1720031128399,13.07883583,3306.5,3306.4,0.08043]
[1720031128601,13.34452587,3306.5,3306.4,0.08043]
[1720031128802,14.24352587,3306.5,3306.4,0.08043]
[1720031129294,13.34452587,3306.5,3306.4,0.08043]
[1720031129496,14.24352587,3306.5,3306.4,0.08043]
[1720031130271,13.97783583,3306.5,3306.4,0.08043]
[1720031142585,11.49073583,3306.5,3306.4,0.08043]
[1720031157878,16.77607583,3306.5,3306.4,0.08043]
[1720031158020,17.04175525,3306.5,3306.4,0.08043]
[1720031160635,16.77607583,3306.5,3306.4,0.08043]
[1720031160957,17.04175403,3306.5,3306.4,0.08043]
[1720031163467,16.77607583,3306.5,3306.4,0.08043]
[1720031163672,17.04171087,3306.5,3306.4,0.08043]
[1720031166874,16.77607583,3306.5,3306.4,0.08043]
[1720031167184,17.0417547,3306.5,3306.4,0.08043]
[1720031167496,17.04174704,3306.5,3306.4,0.08043]
[1720031170281,17.04165048,3306.5,3306.4,0.08043]
[1720031170495,17.04165171,3306.5,3306.4,0.08043]
[1720031172189,17.04165171,3306.5,3306.4,0.08043]
[1720031173710,17.04169313,3306.5,3306.4,0.08043]
[1720031174007,16.14269313,3306.5,3306.4,0.08043]
[1720031174212,15.42102752,3306.5,3306.4,0.08043]
[1720031174526,16.32002752,3306.5,3306.4,0.08043]
[1720031175688,14.78069313,3306.5,3306.4,0.08043]
[1720031177028,14.78072446,3306.5,3306.4,0.08043]
[1720031178241,9.31432863,3306.5,3306.4,0.08043]
[1720031178465,0.26564863,3306.5,3306.4,0.08043]
[1720031178642,3.02418,3306.7,3306.4,2.39393]
[1720031178942,3.02418,3306.7,3306.4,2.46163861]
[1720031179442,3.02418,3306.7,3306.4,2.39393]
[1720031179805,3.02418,3306.7,3306.5,0.06758974]
[1720031180007,3.02418,3306.7,3306.6,2.497]
[1720031180239,6.02418,3306.7,3306.6,2.497]
[1720031180441,6.92318,3306.7,3306.6,2.497]
[1720031180616,6.92318,3306.7,3306.6,2.56450367]
[1720031180819,7.188624,3306.7,3306.6,2.497]
[1720031181420,6.92318,3306.7,3306.6,2.497]
[1720031182156,3.02434,3306.5,3306.4,0.08043]
[1720031182323,7.21311132,3306.5,3306.4,0.08043]
[1720031183418,7.21326633,3306.5,3306.4,0.08043]
[1720031184845,6.31426633,3306.5,3306.4,0.08043]
[1720031185041,7.21326633,3306.5,3306.4,0.08043]
[1720031186054,6.31426633,3306.5,3306.4,0.08043]
[1720031186345,6.04868,3306.5,3306.4,0.08043]
[1720031188118,3.02434,3306.5,3306.4,0.08043]
[1720031189452,3.02427,3306.6,3306.4,0.08043]
[1720031189812,3.02427,3306.6,3306.5,0.06730284]
[1720031190063,6.02427,3306.6,3306.5,0.06730284]
[1720031191116,3.0,3306.6,3306.5,2.52660284]
[1720031191318,3.899,3306.8,3306.5,2.52660284]
[1720031191551,3.02416,3306.7,3306.5,2.52660284]
[1720031191727,3.0,3306.6,3306.5,2.52660284]
[1720031192466,3.02416,3306.7,3306.5,2.52660284]
[1720031192621,3.02416,3306.7,3306.5,2.78730612]
[1720031195258,3.02416,3306.7,3306.5,2.52660284]
[1720031200425,0.899,3306.8,3306.5,2.52660284]
[1720031200630,3.899,3306.8,3306.5,2.52660284]
[1720031201876,6.92307,3306.8,3306.5,2.52660284]
[1720031202390,3.0,3306.8,3306.5,2.52660284]
[1720031202547,3.0,3306.9,3306.6,0.26070328]
[1720031202743,3.0,3306.9,3306.6,0.32796515]
[1720031204289,6.92301,3306.9,3306.6,0.06726187]
[1720031211291,9.94705,3306.9,3306.6,0.06726187]
[1720031214881,3.02409,3306.8,3306.6,0.06726187]
[1720031215083,3.0,3306.7,3306.6,0.06726187]
[1720031218713,2.5,3306.7,3306.6,0.06726187]
[1720031218882,3.02409,3306.8,3306.6,0.06726187]
[1720031220773,3.0,3306.7,3306.6,0.06726187]
[1720031225624,3.02395,3307.0,3306.7,2.4825]
[1720031225977,3.02395,3307.0,3306.8,0.06698323]
[1720031232938,6.9465,3307.2,3306.8,0.06698323]
[1720031233144,6.28905125,3307.1,3306.8,0.06698323]
[1720031233344,0.26525125,3307.0,3306.8,0.06698323]
[1720031233639,6.0238,3307.1,3306.8,0.06698323]
[1720031233940,0.26521651,3307.0,3306.8,0.06698323]
[1720031234100,6.0238,3307.1,3306.8,0.06698323]
[1720031234294,0.26521149,3307.0,3306.8,0.06698323]
[1720031234656,6.0238,3307.1,3306.8,0.06698323]
[1720031234813,0.26520991,3307.0,3306.8,0.06698323]
[1720031235013,6.0238,3307.1,3306.8,0.06698323]
[1720031235339,0.26520826,3307.0,3306.8,0.06698323]
[1720031235541,6.0238,3307.1,3306.8,0.06698323]
[1720031235716,0.2652066,3307.0,3306.8,0.06698323]
[1720031235904,6.0238,3307.1,3306.8,0.06698323]
[1720031236251,0.26520806,3307.0,3306.8,0.06698323]
[1720031236414,6.0238,3307.1,3306.8,0.06698323]
[1720031236614,0.26521433,3307.0,3306.8,0.06698323]
[1720031236817,6.0238,3307.1,3306.8,0.06698323]
[1720031237227,0.26521226,3307.0,3306.8,0.06698323]
[1720031237423,6.0238,3307.1,3306.8,0.06698323]
[1720031237635,0.26521075,3307.0,3306.8,0.06698323]
[1720031237928,0.2652578,3306.9,3306.8,0.06698323]
[1720031238464,0.26525,3306.9,3306.8,0.06698323]
[1720031239221,6.02379,3307.1,3306.8,0.06698323]
[1720031239473,0.26524742,3307.0,3306.8,0.06698323]
[1720031239647,6.02379,3307.1,3306.8,0.06698323]
[1720031239838,0.26523739,3307.0,3306.8,0.06698323]
[1720031240022,6.02379,3307.1,3306.8,0.06698323]
[1720031240227,0.2652382,3307.0,3306.8,0.06698323]
[1720031240428,0.2652382,3306.9,3306.8,0.06698323]
[1720031240666,6.02379,3307.1,3306.8,0.06698323]
[1720031240831,0.26524171,3307.0,3306.8,0.06698323]
[1720031241034,6.02379,3307.1,3306.8,0.06698323]
[1720031241342,0.26524147,3307.0,3306.8,0.06698323]
[1720031241533,6.02379,3307.1,3306.8,0.06698323]
[1720031241734,0.26523522,3307.0,3306.8,0.06698323]
[1720031241936,6.02379,3307.1,3306.8,0.06698323]
[1720031242135,0.26523576,3307.0,3306.8,0.06698323]
[1720031242347,6.02379,3307.1,3306.8,0.06698323]
[1720031242548,0.26523589,3307.0,3306.8,0.06698323]
[1720031242785,6.92271,3307.2,3306.8,0.06698323]
[1720031242965,0.2652309,3307.1,3306.8,0.06698323]
[1720031243269,0.2652309,3307.0,3306.8,0.06698323]
[1720031243458,6.92271,3307.2,3306.8,0.06698323]
[1720031243665,0.26522869,3307.1,3306.8,0.06698323]
[1720031243969,0.26522869,3307.0,3306.8,0.06698323]
[1720031244182,6.92271,3307.2,3306.8,0.06698323]
[1720031244349,0.26522834,3307.1,3306.9,5.40667]
[1720031244538,7.38,3307.5,3307.0,2.3827]
[1720031244740,0.26508965,3307.4,3307.1,0.06678658]
[1720031245063,3.02331,3307.7,3307.1,0.06678658]
[1720031245253,2.3047,3307.9,3307.1,0.06678658]
[1720031245254,4.18740181,3307.6,3307.1,0.06678658]
[1720031245464,0.26504181,3307.5,3307.1,0.06678658]
[1720031246093,3.26504181,3307.5,3307.1,0.06678658]
[1720031246308,3.0,3307.5,3307.1,0.06678658]
[1720031247372,3.0,3307.5,3307.1,0.61413224]
[1720031250962,7.38,3308.0,3307.2,2.4807]
[1720031251279,3.02278,3308.3,3307.5,2.4807]
[1720031251481,3.02278,3308.3,3307.6,2.4807]
[1720031251794,3.02278,3308.3,3307.6,2.54717939]
[1720031252352,3.0,3308.2,3307.6,2.54717939]
[1720031252691,3.0,3308.2,3307.7,0.61751876]
[1720031252895,3.38284402,3309.0,3308.0,3.02294]
[1720031253105,3.38284402,3309.0,3308.4,2.4807]
[1720031253106,3.02208,3309.0,3308.4,2.4807]
[1720031253256,3.92092,3309.2,3308.4,2.4807]
[1720031253483,3.02216,3308.9,3308.5,0.06629921]
[1720031254080,0.392092,3309.2,3308.5,0.06629921]
[1720031254273,3.02174,3309.4,3308.5,0.06629921]
[1720031254274,3.02242,3308.6,3308.5,0.06629921]
[1720031254536,3.75217403,3308.6,3307.7,2.3728]
[1720031254822,3.92166,3308.4,3307.8,0.23728]
[1720031255018,3.92166,3308.4,3307.8,0.06336393]
[1720031255335,3.02271,3308.3,3307.8,0.06336393]
[1720031255507,3.02287,3308.2,3307.8,0.06336393]
[1720031255684,3.02287,3308.2,3307.7,2.3728]
[1720031256033,3.02287,3308.2,3307.8,0.06336393]
[1720031256330,3.02287,3308.2,3307.7,2.3728]
[1720031256527,3.02287,3308.2,3307.9,0.06336393]
[1720031256685,3.02287,3308.2,3307.7,2.3728]
[1720031256876,3.02287,3308.2,3308.0,0.06336393]
[1720031257080,3.02287,3308.2,3307.7,2.3728]
[1720031257316,3.02287,3308.2,3308.1,0.06336393]
[1720031257522,3.02287,3308.2,3307.7,2.61008]
[1720031257523,3.02287,3308.2,3307.7,2.3728]
[1720031257723,3.02287,3308.2,3308.1,0.06336393]
[1720031257881,3.02287,3308.2,3307.7,2.3728]
[1720031258087,3.02287,3308.2,3308.1,0.06336393]
[1720031258301,3.02287,3308.2,3307.7,2.3728]
[1720031258497,3.02271,3308.3,3308.1,0.06336393]
[1720031258698,3.02254,3308.5,3308.0,2.2952]
[1720031259024,3.0,3308.4,3308.0,2.35565773]
[1720031259224,3.0,3308.5,3308.1,0.3888297]
[1720031260393,3.0,3308.5,3308.2,2.4857]
[1720031260590,6.02241,3308.7,3308.2,2.4857]
[1720031260794,9.04482,3308.7,3308.3,0.06336393]
[1720031261051,7.38,3308.8,3308.3,0.3508169]
[1720031262242,10.40229,3308.8,3308.3,0.3508169]
[1720031263643,7.38,3308.8,3308.3,0.3508169]
[1720031264154,3.02228,3308.8,3308.3,0.3508169]
[1720031264452,3.02228,3308.8,3308.4,0.37959659]
[1720031264799,3.02228,3308.8,3308.5,0.06312694]
[1720031267647,3.92101,3309.1,3308.5,0.06312694]
[1720031267851,3.92101,3309.1,3308.6,2.4294]
[1720031268011,3.02216,3308.9,3308.6,2.4294]
[1720031268330,3.0,3309.2,3308.7,0.06312694]
[1720031268558,6.02189,3309.2,3308.7,0.06312694]
[1720031268759,6.02189,3309.2,3308.6,2.73278157]
[1720031269076,6.02189,3309.2,3308.9,2.4504]
[1720031269418,6.02189,3309.2,3309.0,0.06305748]
[1720031269861,3.02196,3309.1,3309.0,0.06305748]
[1720031270018,6.02188,3309.2,3309.0,0.06305748]
[1720031270673,7.38,3309.3,3309.0,0.06305748]
[1720031270835,7.38,3309.3,3309.1,0.25134575]
[1720031271038,3.0217,3309.4,3309.1,0.31428069]
[1720031271333,3.0217,3309.4,3309.1,0.06293494]
[1720031271834,3.0217,3309.4,3309.2,0.06293494]
[1720031272169,3.0217,3309.4,3308.9,3.3494]
[1720031272384,3.02155,3309.6,3309.3,0.06295128]
[1720031272525,3.02155,3309.6,3309.0,0.06043692]
[1720031272526,3.0,3309.5,3309.0,0.06043692]
[1720031272727,3.0,3309.5,3309.1,0.34098369]
[1720031273030,3.02155,3309.6,3309.2,0.06287776]
[1720031273261,6.04276,3309.8,3309.3,2.484]
[1720031273470,3.0,3309.7,3309.3,2.86268615]
[1720031273960,3.0,3309.7,3309.4,0.06287776]
[1720031274264,6.02144,3309.7,3309.4,0.06287776]
[1720031278590,6.02144,3309.7,3309.5,2.4733]
[1720031278591,3.0,3309.7,3309.5,2.4733]
[1720031278752,3.0,3309.9,3309.6,0.25361778]
[1720031279290,3.0,3309.9,3309.7,0.06260816]
[1720031282557,6.02123,3309.9,3309.7,0.06260816]
[1720031283261,0.899,3310.2,3309.7,0.06260816]
[1720031283451,3.02102,3310.2,3309.8,2.4731]
[1720031283669,3.02052,3310.7,3310.0,0.899]
[1720031283901,3.02069,3310.5,3310.2,2.4731]
[1720031284369,3.02069,3310.5,3310.3,0.06231825]
[1720031284570,3.02069,3310.5,3310.2,2.4731]
[1720031285021,3.02069,3310.5,3310.3,0.06231008]
[1720031285319,3.02069,3310.5,3310.2,2.4731]
[1720031285525,3.02069,3310.5,3310.4,0.0619018]
[1720031285805,3.02069,3310.5,3310.2,2.4731]
[1720031286007,3.02079,3310.4,3310.2,2.81635148]
[1720031286172,3.02099,3310.2,3309.9,2.3244]
[1720031290183,3.02055,3310.7,3310.2,2.2638]
[1720031290390,6.02055,3310.7,3310.2,2.2638]
[1720031290690,3.0206,3310.6,3310.2,2.2638]
[1720031290911,3.0,3310.5,3310.2,2.2638]
[1720031291918,3.1356765,3311.0,3310.3,0.32232123]
[1720031292100,3.1356765,3311.0,3310.4,2.2751]
[1720031292101,0.1153765,3311.0,3310.4,2.2751]
[1720031292504,0.1153765,3311.0,3310.5,0.0617916]
[1720031293057,0.1153765,3311.0,3310.6,2.2751]